bitfinex/quotes_SOLUSD_20251006
["timestamp","ask_amount","ask_price","bid_price","bid_amount"]
[1759780289300,0.72,235.09,235.03,30.16]
[1759780289604,1.87009078,235.07,235.03,30.16]
[1759780289808,2.59009078,235.07,235.03,30.16]
[1759780290012,0.72,235.1,235.03,32.03009078]
[1759780290208,2.59009078,235.1,235.03,32.03009078]
[1759780290413,0.72,235.12,235.06,20.8]
[1759780290619,2.59009078,235.12,235.07,30.16]
[1759780291923,0.2,235.13,235.09,1.87009078]
[1759780292097,0.2,235.13,235.1,30.16]
[1759780292716,0.2566,235.12,235.1,30.16]
[1759780293707,0.2566,235.12,235.06,20.86]
[1759780293903,0.2566,235.12,235.07,32.03009078]
[1759780294307,0.2566,235.12,235.07,32.09009078]
[1759780295024,0.2566,235.12,235.1,20.8]
[1759780295229,0.2566,235.12,235.11,30.16]
[1759780295726,0.2566,235.12,235.11,32.09009078]
[1759780296899,0.2566,235.12,235.11,30.16]
[1759780298120,0.2566,235.12,235.1,1.87009078]
[1759780298326,0.2566,235.12,235.11,30.14]
[1759780298853,0.2566,235.12,235.11,32.01009078]
[1759780299438,0.2566,235.12,235.11,1.87009078]
[1759780299641,0.2566,235.12,235.11,32.01009078]
[1759780301028,0.2566,235.12,235.11,30.12]
[1759780301242,0.2566,235.12,235.11,20.8]
[1759780301430,0.2566,235.12,235.11,50.92]
[1759780301740,0.2566,235.12,235.11,20.8]
[1759780301906,0.9266,235.12,235.11,20.8]
[1759780302226,0.9266,235.12,235.11,50.92]
[1759780303639,0.9266,235.12,235.11,30.12]
[1759780303834,0.9266,235.12,235.06,1.87009078]
[1759780303835,7.0498381,235.12,235.06,1.87009078]
[1759780304008,0.67,235.11,235.07,30.12]
[1759780304208,0.67,235.11,235.08,30.12]
[1759780304426,0.67,235.1,235.08,30.12]
[1759780304931,0.67,235.09,235.08,30.12]
[1759780306005,0.67,235.09,235.06,20.8]
[1759780306206,0.67,235.09,235.08,30.12]
[1759780309920,0.67,235.09,235.06,20.8]
[1759780310222,0.67,235.09,235.07,30.08]
[1759780311837,0.66,235.08,235.06,20.8]
[1759780312043,0.66,235.08,235.07,30.08]
[1759780312510,4.25342608,235.11,235.07,30.08]
[1759780312708,0.66,235.1,235.07,30.08]
[1759780312913,4.45306862,235.13,235.07,30.08]
[1759780313142,0.66,235.12,235.07,30.08]
[1759780313314,0.2,235.13,235.08,1.87009078]
[1759780313921,0.86,235.13,235.08,1.87009078]
[1759780314438,0.66,235.12,235.07,1.87009078]
[1759780314634,2.32669078,235.13,235.08,30.06]
[1759780314932,0.4566,235.13,235.11,22.67009078]
[1759780315236,0.4566,235.13,235.12,31.93009078]
[1759780315822,0.4566,235.13,235.12,33.63116883]
[1759780316535,0.4566,235.13,235.12,31.76107805]
[1759780316832,0.4566,235.13,235.12,31.82107805]
[1759780317137,0.4566,235.13,235.12,39.08364072]
[1759780317522,0.4566,235.13,235.12,44.72623279]
[1759780319144,0.4566,235.13,235.12,48.48968902]
[1759780319317,0.4566,235.13,235.12,18.42968902]
[1759780319524,0.4566,235.13,235.12,18.36968902]
[1759780319830,0.4566,235.13,235.12,48.42968902]
[1759780320550,0.4566,235.13,235.12,46.53959824]
[1759780320728,0.4566,235.13,235.12,48.40968902]
[1759780321045,0.4566,235.13,235.12,48.46968902]
[1759780322348,0.4566,235.13,235.12,48.89500375]
[1759780322935,0.4566,235.13,235.12,64.02462628]
[1759780323242,0.2,235.18,235.16,20.8]
[1759780323421,0.2,235.18,235.13,21.91153917]
[1759780323422,0.2,235.18,235.17,43.37037904]
[1759780324047,0.2,235.18,235.17,43.43037904]
[1759780324241,0.2,235.18,235.17,54.30685425]
[1759780324843,0.2,235.18,235.17,42.94515474]
[1759780325342,0.2,235.18,235.17,12.90515474]
[1759780325922,0.2,235.18,235.17,43.43037904]
[1759780326123,0.2,235.18,235.17,45.13080627]
[1759780326950,0.2,235.18,235.17,15.09080627]
[1759780327124,0.2,235.18,235.17,45.13080627]
[1759780327325,0.2,235.18,235.17,45.07080627]
[1759780328738,0.2,235.18,235.17,78.25080627]
[1759780329447,0.2,235.18,235.17,45.85549119]
[1759780329638,0.2,235.18,235.17,72.43311008]
[1759780329833,0.2,235.18,235.17,72.85833438]
[1759780330222,0.2,235.18,235.17,78.19080627]
[1759780330543,0.2,235.19,235.18,10.87647521]
[1759780330732,0.2,235.2,235.18,25.71172073]
[1759780331049,0.2,235.2,235.19,48.9143462]
[1759780331263,0.2,235.2,235.19,54.30681809]
[1759780331556,0.2,235.26,235.25,31.67647521]
[1759780331759,0.86,235.34,235.26,10.87647521]
[1759780331940,0.86,235.34,235.27,43.33160955]
[1759780332125,0.86,235.34,235.27,56.06623374]
[1759780332324,0.86,235.34,235.27,60.3166694]
[1759780332940,0.86,235.34,235.27,50.67376185]
[1759780333150,0.86,235.34,235.27,20.51376185]
[1759780333348,0.66,235.32,235.27,20.51376185]
[1759780333534,0.86,235.34,235.27,20.51376185]
[1759780333739,0.2,235.34,235.27,54.90419751]
[1759780334134,0.2,235.34,235.3,20.8]
[1759780334333,0.2,235.34,235.3,52.81009078]
[1759780334546,0.86,235.34,235.3,52.81009078]
[1759780334745,0.2,235.34,235.3,22.49948802]
[1759780334937,0.86,235.31,235.3,54.5095788]
[1759780335258,0.86,235.31,235.3,24.3695788]
[1759780335455,0.2,235.31,235.3,54.5095788]
[1759780336736,0.86,235.31,235.3,1.69948802]
[1759780336948,0.86,235.31,235.3,30.12]
[1759780337150,0.86,235.31,235.29,1.87009078]
[1759780337347,0.66,235.3,235.29,1.87009078]
[1759780338257,0.66,235.3,235.29,32.01009078]
[1759780338756,0.66,235.3,235.29,30.14]
[1759780339643,0.66,235.3,235.29,30.12]
[1759780341346,0.66,235.3,235.27,20.8]
[1759780341656,0.66,235.3,235.28,30.1]
[1759780341657,0.71,235.29,235.28,30.1]
[1759780341852,2.58009078,235.29,235.28,30.1]
[1759780342360,6.83016515,235.29,235.28,30.1]
[1759780344442,17.45535109,235.29,235.07,12.76]
[1759780344645,1.87009078,235.27,235.21,20.8]
[1759780344959,0.71,235.26,235.24,1.87009078]
[1759780345263,1.87009078,235.29,235.25,30.1]
[1759780345463,1.87009078,235.3,235.26,30.1]
[1759780345664,0.71,235.29,235.26,30.1]
[1759780345881,0.71,235.28,235.27,30.1]
[1759780346754,0.71,235.28,235.23,1.87009078]
[1759780346952,2.58009078,235.27,235.24,30.1]
[1759780347157,0.71,235.26,235.24,30.1]
[1759780347340,0.71,235.25,235.24,30.1]
[1759780347554,0.2,235.31,235.27,20.8]
[1759780347555,0.71,235.28,235.27,20.8]
[1759780347759,0.71,235.28,235.27,52.75009078]
[1759780348154,0.71,235.28,235.27,50.88]
[1759780350765,0.71,235.28,235.25,1.86586138]
[1759780350966,6.31563088,235.31,235.26,30.08]
[1759780350967,0.71,235.27,235.26,30.08]
[1759780351168,0.71,235.27,235.26,31.94586138]
[1759780351470,0.71,235.27,235.17,33.12]
[1759780351471,10.87647521,235.26,235.17,33.12]
[1759780351666,1.86586138,235.18,235.17,33.12]
[1759780351854,2.57586138,235.18,235.17,33.12]
[1759780352768,2.57586138,235.18,235.17,63.28]
[1759780353269,17.70439884,235.18,235.17,33.12]
[1759780353654,17.70439884,235.18,235.17,63.28]
[1759780354482,28.33455446,235.18,235.16,30.16]
[1759780354663,25.75869308,235.18,235.17,30.16]
[1759780354856,27.62455446,235.18,235.17,30.16]
[1759780355190,28.33455446,235.18,235.17,30.16]
[1759780356894,20.8,235.14,235.0,0.7]
[1759780357077,1.86586138,235.05,234.99,1.86586138]
[1759780357689,1.86586138,235.05,234.99,22.66586138]
[1759780357886,6.12028133,235.05,235.0,30.16]
[1759780358271,6.78028133,235.05,235.0,30.16]
[1759780358913,3.5819002,235.05,235.0,30.16]
[1759780359292,3.5819002,235.05,235.01,30.16]
[1759780360098,0.66,235.05,235.01,30.16]
[1759780360299,3.5819002,235.05,235.01,30.16]
[1759780360595,7.83634799,235.05,235.01,30.16]
[1759780361977,0.66,235.04,235.01,30.16]
[1759780362178,7.17634799,235.05,235.01,30.16]
[1759780362393,0.66,235.04,235.01,30.16]
[1759780363793,0.66,235.04,235.01,33.0819002]
[1759780365378,0.66,235.06,235.01,33.0819002]
[1759780365580,0.66,235.05,235.01,33.0819002]
[1759780366002,0.66,235.04,235.01,33.0819002]
[1759780366309,10.87647521,235.09,235.01,33.0819002]
[1759780366474,0.66,235.07,235.02,2.9219002]
[1759780366674,0.66,235.06,235.02,2.9219002]
[1759780366902,0.66,235.05,235.02,2.9219002]
[1759780367306,0.66,235.04,235.01,33.0819002]
[1759780367492,0.66,235.03,235.01,30.16]
[1759780367805,10.87647521,235.12,235.04,20.8]
[1759780368009,10.87647521,235.12,235.11,2.9219002]
[1759780368214,10.87647521,235.12,235.11,33.0819002]
[1759780368582,10.87647521,235.12,235.11,30.16]
[1759780369283,15.12962253,235.12,235.11,30.16]
[1759780369483,15.78962253,235.12,235.11,30.16]
[1759780370292,15.12962253,235.12,235.11,30.16]
[1759780370606,15.12944275,235.13,235.11,30.16]
[1759780371198,0.66,235.14,235.11,33.0819002]
[1759780372210,4.91281209,235.14,235.11,33.0819002]
[1759780372584,11.53647521,235.15,235.11,33.0819002]
[1759780373695,15.78917448,235.15,235.11,33.0819002]
[1759780374708,0.66,235.14,235.11,33.0819002]
[1759780375213,15.78917448,235.15,235.11,33.0819002]
[1759780375414,15.78917448,235.15,235.12,2.9219002]
[1759780375601,0.66,235.14,235.12,2.9219002]
[1759780376416,10.87647521,235.17,235.13,2.9219002]
[1759780376610,10.87647521,235.17,235.15,2.9219002]
[1759780376611,11.53647521,235.17,235.15,2.9219002]
[1759780376806,0.66,235.16,235.14,33.0419002]
[1759780377199,10.87647521,235.17,235.15,2.9219002]
[1759780377599,11.53647521,235.17,235.15,2.9219002]
[1759780377991,10.87647521,235.17,235.15,2.9219002]
[1759780378197,11.53647521,235.17,235.15,2.9219002]
[1759780380196,15.78876424,235.17,235.15,2.9219002]
[1759780380397,0.66,235.16,235.14,30.12]
[1759780380927,15.12876424,235.17,235.15,30.1]
[1759780381442,11.53647521,235.16,235.15,30.1]
[1759780383122,15.78889909,235.16,235.15,30.1]
[1759780384910,10.87647521,235.15,235.08,2.9219002]
[1759780385115,18.05188455,235.1,235.09,30.1]
[1759780385324,18.71188455,235.1,235.09,30.1]
[1759780385922,18.71188455,235.1,235.04,0.69]
[1759780385923,10.87647521,235.09,235.04,0.69]
[1759780386121,10.87647521,235.06,235.05,19.78]
[1759780387307,15.13070817,235.06,235.05,19.78]
[1759780387510,18.71260837,235.06,234.96,0.69]
[1759780387722,2.9219002,235.03,234.97,33.0219002]
[1759780387920,2.9219002,235.02,234.97,30.1]
[1759780388228,3.5819002,235.02,234.97,30.1]
[1759780389214,4.25513807,235.01,234.97,30.1]
[1759780389610,4.25513807,235.01,234.97,33.0219002]
[1759780389809,4.25494838,235.03,234.98,3.6119002]
[1759780390018,10.87647521,235.04,235.0,2.9219002]
[1759780390405,11.53647521,235.04,235.0,2.9219002]
[1759780391034,15.7911703,235.04,235.0,2.9219002]
[1759780391448,10.63448181,235.09,235.02,2.9219002]
[1759780391449,4.91387102,235.08,235.02,2.9219002]
[1759780391643,10.87647521,235.07,235.03,30.1]
[1759780392010,13.79837541,235.07,235.03,30.1]
[1759780392213,14.45837541,235.07,235.03,30.1]
[1759780392542,0.66,235.06,235.03,30.1]
[1759780393136,4.25441395,235.05,235.03,30.1]
[1759780393465,0.66,235.04,235.03,30.1]
[1759780395247,4.25441395,235.05,235.03,30.1]
[1759780396470,16.04662268,235.07,235.03,30.1]
[1759780396835,16.04662268,235.07,235.03,33.0219002]
[1759780397363,0.66,235.06,235.03,30.1]
[1759780399063,4.25441395,235.05,235.03,30.1]
[1759780399366,4.2542387,235.06,235.03,30.1]
[1759780399563,4.2542387,235.06,235.03,33.0219002]
[1759780399969,15.38652922,235.07,235.03,33.0219002]
[1759780400148,0.256,235.07,235.05,2.9219002]
[1759780401467,0.69,235.06,235.0,20.8]
[1759780401671,0.69,235.06,235.02,2.9219002]
[1759780402052,0.69,235.06,235.03,30.08]
[1759780402268,4.51005874,235.07,235.03,33.0019002]
[1759780402458,5.20005874,235.07,235.03,33.0019002]
[1759780403277,5.20005874,235.07,235.04,30.08]
[1759780403849,16.07653395,235.07,235.06,2.9219002]
[1759780404941,10.87647521,235.06,235.05,2.9219002]
[1759780405144,11.56647521,235.06,235.04,30.08]
[1759780405366,0.69,235.05,235.03,2.9219002]
[1759780405580,10.87647521,235.06,234.97,20.8]
[1759780405770,10.87647521,235.06,234.9,2.9219002]
[1759780405771,2.9219002,235.04,234.94,0.72]
[1759780406077,10.87647521,235.02,234.98,33.0019002]
[1759780406243,10.87647521,235.02,235.01,2.9219002]
[1759780406443,4.25452683,235.05,235.01,2.9219002]
[1759780406660,15.13100204,235.05,235.04,2.9219002]
[1759780406864,15.13100204,235.05,235.04,33.0019002]
[1759780407460,0.256,235.07,235.04,33.0019002]
[1759780407650,0.256,235.07,235.06,2.9219002]
[1759780408165,0.256,235.07,235.06,3.6419002]
[1759780408344,0.256,235.07,235.06,2.9219002]
[1759780411066,0.256,235.07,235.06,2.92028131]
[1759780411451,0.256,235.07,235.06,33.00028131]
[1759780411987,0.256,235.07,235.06,31.9489821]
[1759780413558,0.256,235.07,235.06,32.6689821]
[1759780414354,3.49736354,235.28,235.09,20.8]
[1759780414550,14.3940285,235.24,235.18,1.8689821]
[1759780414762,10.87647521,235.2,235.19,21.52]
[1759780415074,11.56647521,235.2,235.19,21.52]
[1759780415861,15.81817589,235.2,235.19,21.52]
[1759780417472,28.31640969,235.2,235.19,30.08]
[1759780419176,28.39048565,235.2,235.19,30.08]
[1759780419854,31.53188094,235.2,235.19,30.08]
[1759780422680,29.58882288,235.2,235.19,30.08]
[1759780422885,29.58943166,235.2,235.19,30.08]
[1759780424480,28.89943166,235.2,235.19,30.08]
[1759780426358,29.61943166,235.2,235.19,30.08]
[1759780426561,31.56248972,235.2,235.19,30.08]
[1759780426781,31.56248972,235.2,235.12,1.94305806]
[1759780426996,12.81953327,235.18,235.13,30.06]
[1759780427165,10.87647521,235.18,235.13,1.94305806]
[1759780427366,10.87647521,235.16,235.14,32.00305806]
[1759780428072,10.87647521,235.16,235.14,30.06]
[1759780428462,15.12907993,235.15,235.14,30.06]
[1759780429483,4.25170068,235.2,235.14,32.68305806]
[1759780429786,14.01948767,235.19,235.16,1.94305806]
[1759780429974,22.21617885,235.19,235.16,1.94305806]
[1759780432793,26.4680603,235.19,235.16,1.94305806]
[1759780433484,10.87647521,235.17,235.14,32.00305806]
[1759780433684,0.71,235.16,235.14,32.00305806]
[1759780434485,4.25260472,235.15,235.14,32.00305806]
[1759780435194,0.71,235.19,235.14,32.00305806]
[1759780435410,10.87647521,235.19,235.18,1.94305806]
[1759780435577,15.12852929,235.19,235.18,32.00305806]
[1759780436194,4.25205408,235.19,235.18,32.00305806]
[1759780436375,4.25205408,235.19,235.18,32.68305806]
[1759780436574,4.25205408,235.19,235.18,32.00305806]
[1759780439606,4.25205408,235.19,235.18,1.94305806]
[1759780439896,4.25205408,235.19,235.18,32.00305806]
[1759780440898,4.25205408,235.19,235.18,1.94305806]
[1759780441100,4.25205408,235.19,235.18,32.00305806]
[1759780442388,4.25205408,235.19,235.18,1.94305806]
[1759780442702,4.25205408,235.19,235.18,32.00305806]
[1759780442995,14.88175772,235.19,235.1,20.8]
[1759780443210,10.87647521,235.18,235.17,1.94305806]
[1759780443503,10.87647521,235.18,235.17,30.06]
[1759780443681,10.87647521,235.18,235.17,32.00305806]
[1759780445103,4.25206225,235.18,235.17,32.00305806]
[1759780445284,10.87647521,235.24,235.17,32.68305806]
[1759780445488,10.87647521,235.22,235.18,0.68]
[1759780445805,10.87647521,235.22,235.21,1.94305806]
[1759780445979,10.87647521,235.22,235.21,32.00305806]
[1759780446181,79.31,235.25,235.21,32.00305806]
[1759780446182,10.87647521,235.23,235.21,32.68305806]
[1759780446398,10.87647521,235.23,235.22,1.94305806]
[1759780446790,4.25097772,235.24,235.22,1.94305806]
[1759780447013,4.25097772,235.24,235.23,1.94305806]
[1759780447184,15.12709154,235.26,235.23,1.94305806]
[1759780447384,14.02636728,235.25,235.24,30.04]
[1759780447915,10.87647521,235.25,235.24,30.04]
[1759780448091,11.58647521,235.25,235.24,30.04]
[1759780449209,10.87647521,235.24,235.1,16.72867075]
[1759780449397,11.58647521,235.24,235.2,1.94305806]
[1759780449593,11.58647521,235.24,235.15,21.48]
[1759780449594,10.87647521,235.22,235.15,21.48]
[1759780449905,1.94305806,235.24,235.18,1.94305806]
[1759780449906,10.87647521,235.2,235.18,1.94305806]
[1759780450319,1.94305806,235.24,235.07,3.69842513]
[1759780450320,10.87647521,235.18,235.07,3.69842513]
[1759780450493,10.87647521,235.14,235.08,30.04]
[1759780450698,11.58647521,235.14,235.1,1.94305806]
[1759780450906,11.58647521,235.14,235.11,1.94305806]
[1759780451208,11.58647521,235.14,235.12,30.04]
[1759780451209,15.12944165,235.13,235.12,30.04]
[1759780451406,0.71,235.18,235.12,31.98305806]
[1759780451599,10.87647521,235.17,235.16,1.94305806]
[1759780451807,10.87647521,235.19,235.16,31.98305806]
[1759780451986,12.81953327,235.17,235.16,30.04]
[1759780452182,14.73882736,235.17,235.16,30.04]
[1759780453114,10.87647521,235.17,235.16,31.98305806]
[1759780453414,15.12871826,235.17,235.16,31.98305806]
[1759780453583,15.83871826,235.17,235.16,30.04]
[1759780453792,26.4693259,235.17,235.16,30.04]
[1759780454024,29.62323574,235.17,235.16,30.04]
[1759780455913,28.91323574,235.17,235.16,30.04]
[1759780456213,28.91469443,235.17,235.16,30.04]
[1759780456903,15.12871826,235.17,235.16,31.98305806]
[1759780457601,10.62946455,235.2,235.16,31.98305806]
[1759780457802,10.87647521,235.19,235.16,30.72]
[1759780458501,4.251719,235.2,235.16,30.04]
[1759780458699,4.251719,235.2,235.17,0.7]
[1759780458910,15.12781438,235.22,235.17,0.7]
[1759780459207,14.03409722,235.21,235.19,1.94305806]
[1759780459516,10.87647521,235.19,235.11,0.7]
[1759780459715,10.87647521,235.19,235.17,1.94305806]
[1759780460010,10.87647521,235.21,235.18,30.04]
[1759780460211,3.15771462,235.2,235.18,31.98305806]
[1759780460392,3.15771462,235.2,235.19,1.94305806]
[1759780460714,3.81771462,235.2,235.18,31.98305806]
[1759780460914,4.91188145,235.19,235.18,31.98305806]
[1759780461714,4.25188145,235.19,235.18,31.98305806]
[1759780462814,4.25170068,235.2,235.18,31.98305806]
[1759780463118,4.91170068,235.2,235.18,31.98305806]
[1759780463495,4.25170068,235.2,235.18,31.98305806]
[1759780463806,4.91170068,235.2,235.18,31.98305806]
[1759780464220,4.91170068,235.2,235.18,1.94305806]
[1759780464421,4.91170068,235.2,235.19,30.04]
[1759780464601,8.06931376,235.2,235.19,30.04]
[1759780464920,8.06931376,235.2,235.19,31.98305806]
[1759780465420,8.06931376,235.2,235.19,30.04]
[1759780466931,7.40931376,235.2,235.19,31.98305806]
[1759780467804,7.40931376,235.2,235.19,30.04]
[1759780468011,8.06931376,235.2,235.19,31.98305806]
[1759780470030,18.94578897,235.2,235.19,30.04]
[1759780470432,14.03408829,235.2,235.19,31.98305806]
[1759780470736,15.12817589,235.2,235.19,32.68305806]
[1759780471033,15.12817589,235.2,235.19,31.98305806]
[1759780473026,15.78817589,235.2,235.19,30.04]
[1759780473196,15.78817589,235.2,235.19,33.07452148]
[1759780473519,18.94656863,235.2,235.19,33.07452148]
[1759780473730,18.28656863,235.2,235.19,33.07452148]
[1759780474046,15.12817589,235.2,235.19,33.07452148]
[1759780475927,15.12817589,235.2,235.19,33.77452148]
[1759780476111,89.22813714,235.23,235.19,33.77452148]
[1759780476112,4.25153067,235.21,235.19,33.77452148]
[1759780476430,4.25153067,235.21,235.2,3.03452148]
[1759780476632,7.41221508,235.21,235.2,3.03452148]
[1759780477128,4.25133917,235.22,235.2,3.68452148]
[1759780477432,4.25133917,235.22,235.21,33.07452148]
[1759780478005,78.6,235.23,235.21,33.72452148]
[1759780478207,78.6,235.23,235.22,3.68452148]
[1759780478519,15.12727415,235.25,235.22,3.68452148]
[1759780478712,3.15969006,235.24,235.23,30.04]
[1759780479506,7.41066778,235.24,235.23,30.04]
[1759780479802,8.07066778,235.24,235.23,3.03452148]
[1759780480022,8.07066778,235.24,235.23,33.07452148]
[1759780480218,8.07066778,235.24,235.19,20.8]
[1759780480219,10.87647521,235.23,235.19,20.8]
[1759780480424,0.66,235.22,235.2,33.07452148]
[1759780480619,10.87647521,235.23,235.21,30.04]
[1759780480821,10.87647521,235.23,235.22,3.03452148]
[1759780481013,3.15844081,235.23,235.22,3.03452148]
[1759780481312,15.12709154,235.26,235.22,3.68452148]
[1759780481509,7.40925872,235.25,235.23,30.04]
[1759780481732,3.15831724,235.24,235.23,30.04]
[1759780482105,4.25094148,235.25,235.23,30.04]
[1759780482733,15.12741669,235.25,235.24,3.03452148]
[1759780482935,18.28592538,235.25,235.24,3.03452148]
[1759780486573,18.94592538,235.25,235.23,30.04]
[1759780486741,15.12741669,235.25,235.24,3.03452148]
[1759780487034,18.28454153,235.25,235.24,3.03452148]
[1759780487241,18.28454153,235.25,235.24,33.05452148]
[1759780487534,18.94454153,235.25,235.24,33.05452148]
[1759780488137,18.94430049,235.25,235.24,33.05452148]
[1759780489011,10.87647521,235.24,235.23,3.03452148]
[1759780489230,14.73335901,235.24,235.23,33.05452148]
[1759780490217,14.73335901,235.24,235.19,20.8]
[1759780490218,14.73335901,235.24,235.16,5.0961588]
[1759780490423,14.73335901,235.24,235.09,12.7570004]
[1759780490424,10.87647521,235.22,235.2,3.03452148]
[1759780490644,10.87647521,235.24,235.21,30.02]
[1759780490837,3.15531492,235.23,235.22,30.02]
[1759780491242,8.10647336,235.23,235.22,30.02]
[1759780491461,8.10640523,235.23,235.22,30.02]
[1759780494941,15.12781438,235.22,235.21,3.03452148]
[1759780495252,18.98306117,235.22,235.21,30.02]
[1759780495461,29.61140909,235.22,235.17,0.71]
[1759780495627,10.87647521,235.2,235.18,30.02]
[1759780495956,10.87647521,235.21,235.19,3.03452148]
[1759780496150,3.15591451,235.2,235.18,30.02]
[1759780497163,7.40761519,235.2,235.19,3.03452148]
[1759780498528,4.25170068,235.2,235.19,3.03452148]
[1759780498734,7.40974712,235.2,235.19,3.03452148]
[1759780498931,4.25170068,235.2,235.19,3.03452148]
[1759780499239,7.40974773,235.2,235.19,3.03452148]
[1759780499630,3.15804705,235.2,235.19,3.03452148]
[1759780499835,3.15804705,235.2,235.19,3.74452148]
[1759780500044,18.28622294,235.2,235.19,3.74452148]
[1759780500242,10.62637543,235.27,235.19,6.77904296]
[1759780500434,10.87647521,235.25,235.2,3.74452148]
[1759780500627,3.15930427,235.24,235.21,30.73]
[1759780500962,4.25061633,235.26,235.22,0.71]
[1759780501337,4.25061633,235.26,235.23,0.71]
[1759780501537,3.16057227,235.25,235.24,30.73]
[1759780501750,4.25061633,235.26,235.24,33.76452148]
[1759780502068,10.87647521,235.27,235.24,30.02]
[1759780502364,10.87647521,235.27,235.26,3.03452148]
[1759780503435,18.28795247,235.27,235.24,30.02]
[1759780503628,3.16086949,235.26,235.24,30.73]
[1759780503836,3.86086949,235.26,235.24,30.02]
[1759780504056,3.16086949,235.25,235.24,30.02]
[1759780504249,10.87647521,235.24,235.13,0.71]
[1759780504451,3.86086949,235.23,235.14,11.86]
[1759780504635,10.87647521,235.21,235.14,32.66]
[1759780504834,3.16086949,235.2,235.15,0.71]
[1759780505155,10.87647521,235.24,235.19,3.03452148]
[1759780505336,3.15985301,235.23,235.2,30.02]
[1759780505539,4.25151991,235.21,235.2,30.02]
[1759780505746,8.11137292,235.21,235.2,30.02]
[1759780506347,7.41137292,235.21,235.2,30.02]
[1759780506547,7.41137292,235.21,235.2,33.05452148]
[1759780507640,3.15985301,235.21,235.2,33.05452148]
[1759780507851,10.87647521,235.27,235.2,36.79904296]
[1759780508056,3.16054591,235.26,235.2,33.76452148]
[1759780508255,3.16054591,235.25,235.2,33.76452148]
[1759780508465,3.16054591,235.24,235.2,33.76452148]
[1759780508650,3.16054591,235.23,235.2,33.05452148]
[1759780508851,4.95061633,235.26,235.21,0.71]
[1759780509068,3.16042899,235.25,235.21,0.71]
[1759780509376,3.16042899,235.24,235.2,33.05452148]
[1759780509656,3.16042899,235.23,235.2,33.76452148]
[1759780509861,4.25097772,235.24,235.2,33.76452148]
[1759780510060,3.16022437,235.23,235.2,30.73]
[1759780510240,3.86022437,235.22,235.16,20.8]
[1759780510439,10.87647521,235.22,235.21,3.03452148]
[1759780510641,14.03666706,235.22,235.21,33.05452148]
[1759780511571,14.73666706,235.22,235.21,33.05452148]
[1759780511863,18.9891821,235.22,235.21,33.05452148]
[1759780512440,18.2891821,235.22,235.21,33.05452148]
[1759780513041,10.87647521,235.21,235.14,0.71]
[1759780513247,10.87647521,235.21,235.19,3.03452148]
[1759780513752,10.87647521,235.21,235.2,30.02]
[1759780514067,14.73843366,235.21,235.2,30.02]
[1759780514770,18.98995357,235.21,235.2,30.02]
[1759780515956,18.28995357,235.21,235.2,30.02]
[1759780516169,3.16195845,235.21,235.2,33.05452148]
[1759780516344,7.41347836,235.21,235.2,33.05452148]
[1759780517061,10.87647521,235.2,235.18,3.03452148]
[1759780517248,11.57647521,235.2,235.19,30.02]
[1759780517446,14.0374665,235.2,235.19,33.05452148]
[1759780517640,4.25080739,235.25,235.19,33.76452148]
[1759780517852,3.16154604,235.24,235.23,3.03452148]
[1759780518055,3.16154604,235.24,235.23,33.05452148]
[1759780518452,3.87154604,235.24,235.17,21.49]
[1759780518765,10.87647521,235.27,235.23,3.03452148]
[1759780518967,14.03812164,235.26,235.25,3.03452148]
[1759780519540,14.03812164,235.26,235.24,30.02]
[1759780519541,10.87647521,235.25,235.24,30.02]
[1759780519744,14.74812164,235.25,235.24,30.02]
[1759780521376,29.62591122,235.25,235.17,20.8]
[1759780521546,10.87647521,235.23,235.21,20.8]
[1759780521746,10.87647521,235.21,235.17,20.8]
[1759780522062,3.15979083,235.2,235.18,30.0]
[1759780522265,3.15979083,235.19,235.18,30.0]
[1759780522645,0.71,235.2,235.18,30.0]
[1759780522846,3.8691808,235.19,235.18,30.0]
[1759780523045,3.86928508,235.19,235.18,30.0]
[1759780523360,8.12116653,235.19,235.18,30.0]